fUSD/lending_fUSD_20241221
["ID","MTS","AMOUNT","RATE_DAILY","PERIOD"]
[346146633,1734748256346,-462.084,0.0002367,2]
[346146634,1734748256361,-222.122111,0.00023678,2]
[346146635,1734748256375,-222.122111,0.00023678,3]
[346146636,1734748256386,-222.122111,0.00023678,4]
[346146637,1734748256398,-222.122111,0.00023678,5]
[346146638,1734748256410,-222.122111,0.00023678,6]
[346146639,1734748256425,-222.122111,0.00023678,9]
[346146640,1734748256439,-222.122111,0.00023678,10]
[346146641,1734748256450,-222.122111,0.00023678,11]
[346146642,1734748256461,-222.122111,0.00023678,12]
[346146643,1734748256474,-222.122111,0.00023678,13]
[346146644,1734748256485,-330.9206,0.00023688,7]
[346146645,1734748256496,-5000.0,0.000237,2]
[346146646,1734748256507,-5000.0,0.000237,2]
[346146647,1734748256519,-900.0,0.000237,8]
[346146648,1734748256531,-1190.94645734,0.000237,2]
[346146649,1734748256543,-150.0,0.0002371,2]
[346146650,1734748256556,-1153.05490677,0.00023735,2]
[346146651,1734748256568,-200.0,0.00023735,2]
[346146652,1734748256580,-150.0,0.00023737,2]
[346146653,1734748256592,-1447.52370318,0.0002376,2]
[346146654,1734748256603,-150.0,0.00023777,2]
[346146655,1734748256615,-222.122111,0.00023778,2]
[346146656,1734748256627,-222.122111,0.00023778,3]
[346146657,1734748256638,-222.122111,0.00023778,4]
[346146658,1734748256650,-222.122111,0.00023778,5]
[346146659,1734748256661,-222.122111,0.00023778,6]
[346146660,1734748256673,-222.122111,0.00023778,9]
[346146661,1734748256684,-222.122111,0.00023778,10]
[346146662,1734748256697,-222.122111,0.00023778,11]
[346146663,1734748256709,-222.122111,0.00023778,12]
[346146664,1734748256721,-222.122111,0.00023778,13]
[346146665,1734748256733,-256.24882801,0.0002378,4]
[346146666,1734748256745,-150.0,0.00023786,2]
[346146667,1734748256757,-150.0,0.00023799,2]
[346146668,1734748256769,-150.0,0.00023799,2]
[346146669,1734748256781,-246.71643495,0.00023799,2]
[346146670,1734748256793,-150.0,0.000238,2]
[346146671,1734748256805,-5000.0,0.000238,2]
[346146672,1734748256816,-1560.0,0.000238,8]
[346146673,1734748256828,-2956516.37605662,0.000238,2]
[346146674,1734748256840,-157.509719,0.000238,7]
[346146675,1734748256851,-151.0,0.000238,7]
[346146676,1734748256863,-151.0,0.000238,7]
[346146677,1734748256875,-151.0,0.000238,7]
[346146678,1734748256886,-259.84895,0.000238,7]
[346146679,1734748256899,-259.84895,0.000238,7]
[346146680,1734748256910,-500.0,0.00023808,2]
[346146681,1734748256922,-150.0,0.00023812,2]
[346146682,1734748256934,-536861.35955901,0.0002382,2]
[346146683,1734748256946,-996.2486196,0.00023821,2]
[346146684,1734748256958,-500.92314111,0.00023821,2]
[346146685,1734748256970,-150.0,0.00023832,2]
[346146686,1734748256982,-150.0,0.00023839,2]
[346146687,1734748256995,-150.0,0.00023845,2]
[346146688,1734748257006,-1766.87,0.00023863,7]
[346146689,1734748257020,-1766.87,0.00023863,7]
[346146690,1734748257031,-1766.87,0.00023863,7]
[346146691,1734748257042,-1766.87,0.00023863,7]
[346146692,1734748257053,-1766.87,0.00023863,7]
[346146693,1734748257065,-1766.87,0.00023863,7]
[346146694,1734748257076,-1766.87,0.00023863,7]
[346146695,1734748257089,-1766.87,0.00023863,7]
[346146696,1734748257100,-1766.87,0.00023863,7]
[346146697,1734748257113,-1766.87,0.00023863,7]
[346146698,1734748257125,-1766.87,0.00023863,7]
[346146699,1734748257137,-1766.87,0.00023863,7]
[346146700,1734748257149,-1766.87,0.00023863,7]
[346146701,1734748257161,-1766.87,0.00023863,7]
[346146702,1734748257173,-1766.87,0.00023863,7]
[346146703,1734748257184,-1766.87,0.00023863,7]
[346146704,1734748257197,-1766.87,0.00023863,7]
[346146705,1734748257209,-1766.87,0.00023863,7]
[346146706,1734748257223,-1766.87,0.00023863,7]
[346146707,1734748257234,-1766.87,0.00023863,7]
[346146708,1734748257246,-1766.87,0.00023863,7]
[346146709,1734748257258,-1766.87,0.00023863,7]
[346146710,1734748257269,-1766.87,0.00023863,7]
[346146711,1734748257281,-1766.89512354,0.00023863,7]
[346146712,1734748257292,-222.122111,0.00023878,2]
[346146713,1734748257304,-222.122111,0.00023878,3]
[346146714,1734748257316,-222.122111,0.00023878,4]
[346146715,1734748257329,-222.122111,0.00023878,5]
[346146716,1734748257342,-222.122111,0.00023878,6]
[346146717,1734748257356,-222.122111,0.00023878,9]
[346146718,1734748257369,-222.122111,0.00023878,10]
[346146719,1734748257381,-222.122111,0.00023878,11]
[346146720,1734748257592,-222.122111,0.00023878,12]
[346146721,1734748257621,-222.122111,0.00023878,13]
[346146722,1734748257639,-7393638.05654304,0.0002388,2]
[346146723,1734748257649,-151.0,0.0002388,7]
[346146724,1734748257658,-151.0,0.0002388,7]
[346146725,1734748257668,-151.0,0.0002388,7]
[346146726,1734748257678,-363.568162,0.0002388,7]
[346146727,1734748257688,-363.568162,0.0002388,7]
[346146728,1734748257697,-151.0,0.0002388,7]
[346146729,1734748257706,-151.0,0.0002388,7]
[346146730,1734748257715,-151.0,0.0002388,7]
[346146731,1734748257725,-151.0,0.0002388,7]
[346146732,1734748257735,-151.725674,0.0002388,7]
[346146733,1734748257745,-151.0,0.0002388,7]
[346146734,1734748257755,-151.0,0.0002388,7]
[346146735,1734748257765,-151.0,0.0002388,7]
[346146736,1734748257774,-259.84895,0.0002388,7]
[346146737,1734748257784,-259.84895,0.0002388,7]
[346146738,1734748257793,-150.0,0.00023881,2]
[346146739,1734748257803,-150.0,0.00023883,2]
[346146740,1734748257813,-425.49,0.0002389,2]
[346146741,1734748257822,-800.0,0.0002389,2]
[346146742,1734748257832,-800.0,0.0002389,2]
[346146743,1734748257842,-666.0,0.00023899,2]
[346146744,1734748257852,-666.0,0.00023899,2]
[346146745,1734748257861,-5000.0,0.000239,2]
[346146746,1734748257871,-87110.58615717,0.000239,2]
[346146747,1734748257880,-1832.881205,0.000239,7]
[346146748,1734748257890,-29661.972248,0.000239,2]
[346146749,1734748257900,-3500999.02898853,0.000239,2]
[346146750,1734748257909,-101169.32941183,0.000239,2]
[346146751,1734748257920,-1006734.23580286,0.000239,2]
[346146752,1734748257930,-229.42635,0.000239,7]
[346146753,1734748257941,-1848.925949,0.000239,7]
[346146754,1734748257952,-1848.925949,0.000239,7]
[346146755,1734748257963,-184.102424,0.000239,7]
[346146756,1734748257973,-151.0,0.000239,7]
[346146757,1734748257984,-151.0,0.000239,7]
[346146758,1734748257994,-151.0,0.000239,7]
[346146759,1734748258004,-151.0,0.000239,7]
[346146760,1734748258012,-151.0,0.000239,7]
[346146761,1734748258021,-5438.301801,0.000239,7]
[346146762,1734748258031,-151.892808,0.000239,7]
[346146763,1734748258040,-151.0,0.000239,7]
[346146764,1734748258050,-151.0,0.000239,7]
[346146765,1734748258059,-363.568162,0.000239,7]
[346146766,1734748258070,-363.568162,0.000239,7]
[346146767,1734748258080,-202.551981,0.000239,7]
[346146768,1734748258090,-151.992091,0.000239,7]
[346146769,1734748258100,-151.0,0.000239,7]
[346146770,1734748258109,-151.882257,0.000239,7]
[346146771,1734748258119,-2067.0,0.000239,4]
[346146772,1734748258128,-166.17,0.000239,7]
[346146773,1734748258138,-752.32,0.000239,2]
[346146774,1734748258148,-151.0,0.000239,7]
[346146775,1734748258158,-151.0,0.000239,7]
[346146776,1734748258168,-269.388026,0.000239,7]
[346146777,1734748258178,-259.84895,0.000239,7]
[346146778,1734748258188,-259.84895,0.000239,7]
[346146779,1734748258198,-153.0,0.00023903,2]
[346146780,1734748258206,-153.0,0.00023903,2]
[346146781,1734748258216,-153.0,0.00023903,2]
[346146782,1734748258225,-153.0,0.00023903,2]
[346146783,1734748258235,-153.0,0.00023903,2]
[346146784,1734748258245,-153.0,0.00023903,2]
[346146785,1734748258254,-153.0,0.00023903,2]
[346146786,1734748258263,-153.0,0.00023903,2]
[346146787,1734748258274,-153.0,0.00023903,2]
[346146788,1734748258283,-153.0,0.00023903,2]
[346146789,1734748258293,-153.0,0.00023903,2]
[346146790,1734748258303,-153.0,0.00023903,2]
[346146791,1734748258312,-153.0,0.00023903,2]
[346146792,1734748258321,-153.0,0.00023903,2]
[346146793,1734748258330,-153.0,0.00023903,2]
[346146794,1734748258339,-153.0,0.00023903,2]
[346146795,1734748258349,-150.0,0.00023916,2]
[346146796,1734748258362,-335304.0,0.00023922,2]
[346146797,1734748258372,-151.0,0.00023922,7]
[346146798,1734748258381,-215.977617,0.00023922,7]
[346146799,1734748258391,-259.84895,0.00023922,7]
[346146800,1734748258403,-259.84895,0.00023922,7]
[346146801,1734748258415,-150.0,0.0002393,2]
[346146802,1734748258425,-150.0,0.00023938,2]
[346146803,1734748258438,-150.0,0.00023948,2]
[346146804,1734748258449,-14607.5255421,0.0002395,7]
[346146805,1734748258458,-150.0,0.0002395,2]
[346146806,1734748258467,-1500.0,0.00023965,2]
[346146807,1734748258477,-644.73,0.00023967,2]
[346146808,1734748258487,-150.0,0.00023969,2]
[346146809,1734748258497,-200.0,0.00023972,2]
[346146810,1734748258507,-501.53937982,0.00023973,2]
[346146811,1734748258516,-648718.29275156,0.0002398,3]
[346146812,1734748258525,-14038.26974106,0.0002398,3]
[346146813,1734748258534,-48864.94562047,0.0002398,3]
[346146814,1734748258543,-151.0,0.0002398,7]
[346146815,1734748258552,-151.0,0.0002398,7]
[346146816,1734748258561,-363.568162,0.0002398,7]
[346146817,1734748258570,-363.568162,0.0002398,7]
[346146818,1734748258579,-151.0,0.0002398,7]
[346146819,1734748258591,-13426.10166764,0.00023996,14]
[346146820,1734748258601,-222.122111,0.00023997,5]
[346146821,1734748258610,-222.122111,0.00023997,4]
[346146822,1734748258619,-222.122111,0.00023997,3]
[346146823,1734748258629,-222.122111,0.00023997,2]
[346146824,1734748258638,-666.0,0.00023998,2]
[346146825,1734748258647,-666.0,0.00023998,2]
[346146826,1734748258656,-222.122111,0.00023998,6]
[346146827,1734748258665,-222.122111,0.00023998,9]
[346146828,1734748258674,-222.122111,0.00023998,10]
[346146829,1734748258684,-222.122111,0.00023998,11]
[346146830,1734748258695,-222.122111,0.00023998,12]
[346146831,1734748258704,-222.122111,0.00023998,13]
[346146832,1734748258714,-222.122111,0.00023998,5]
[346146833,1734748258723,-222.122111,0.00023998,4]
[346146834,1734748258733,-222.122111,0.00023998,3]
[346146835,1734748258743,-12902.27295916,0.00023998,2]
[346146836,1734748258752,-666.0,0.00023999,2]
[346146837,1734748258762,-264358.82979527,0.00023999,2]
[346146838,1734748258772,-998.34812204,0.00023999,2]
[346146839,1734748258781,-7357398.26808096,0.00024,5]
[346146840,1734748259017,-429.43344195,0.00024,5]
[346146841,1734748259029,-632.34002,0.00024,5]
[346146842,1734748259040,-1528.71332475,0.00024,5]
[346146843,1734748259051,-50184.78986617,0.00024,5]
[346146844,1734748259062,-451.15504761,0.00024,5]
[346146845,1734748259073,-976.49296689,0.00024,5]
[346146846,1734748259085,-1864.33754234,0.00024,5]
[346146847,1734748259096,-9985.0,0.00024,5]
[346146848,1734748259107,-304.57,0.00024,5]
[346146849,1734748259173,-500.0,0.00023287,4]
[346146850,1734748259182,-238.36589296,0.00023287,4]
[346146851,1734748259196,-261.63410704,0.00023287,4]
[346146852,1734748259206,-500.0,0.00023287,4]
[346146853,1734748259220,-529.20425112,0.00023287,4]
[346146854,1734748259229,-480.40101735,0.00023287,4]
[346146855,1734748259238,-500.0,0.00023287,4]
[346146856,1734748259249,-500.0,0.00023287,4]
[346146857,1734748259258,-151.0,0.000235,7]
[346146858,1734748259268,-151.0,0.000238,7]
[346146859,1734748259278,-151.0,0.0002388,7]
[346146860,1734748259287,-167.996974,0.000239,7]
[346146861,1734748259296,-205.46365051,0.00024,5]
[346146862,1734748259308,-5589.9701285,0.00024,5]
[346146863,1734748259319,-986.71762689,0.00024,5]
[346146864,1734748259331,-1980.06495423,0.00024,5]
[346146865,1734748259342,-6315.3454475,0.00024,5]
[346146866,1734748259364,-624.79062538,0.00023287,4]
[346146867,1734748259374,-183.59192694,0.00024,5]
[346146868,1734748259385,-3999.64712997,0.00024,5]
[346146869,1734748259397,-4991.25,0.00024,5]
[346146870,1734748259408,-14399.99999996,0.00024,5]
[346146871,1734748259419,-307.71169007,0.00024,5]
[346146872,1734748259432,-821.37766856,0.00024,5]
[346146873,1734748259541,-699.5899999,0.00022434,2]
[346146874,1734748259554,-424.49932413,0.00022434,2]
[346146875,1734748259564,-291.73740681,0.00023287,4]
[346146876,1734748259573,-478.95872917,0.00023287,4]
[346146877,1734748259585,-21.04127083,0.00023287,4]
[346146878,1734748259595,-510.11771543,0.00023287,4]
[346146879,1734748259605,-79.82753037,0.00023287,4]
[346146880,1734748259632,-301.88622792,0.00023287,4]
[346146881,1734748259644,-118.28624171,0.00023287,4]
[346146882,1734748259653,-500.0,0.00023287,4]
[346146883,1734748259662,-356.71375829,0.00023287,4]
[346146884,1734748259673,-143.28624171,0.00023287,4]
[346146885,1734748259683,-500.0,0.00023287,4]
[346146886,1734748259693,-500.0,0.00023287,4]
[346146887,1734748259702,-85.21136829,0.00023287,4]
[346146888,1734748259714,-414.78863171,0.00023287,4]
[346146889,1734748259723,-487.2421844,0.00023287,4]
[346146890,1734748259733,-323.37367731,0.00023287,4]
[346146891,1734748259744,-176.62632269,0.00023287,4]
[346146892,1734748259754,-500.0,0.00023287,4]
[346146893,1734748259764,-522.0881261,0.00023287,4]
[346146894,1734748259774,-500.0,0.00023287,4]
[346146895,1734748259783,-431.44059863,0.00023287,4]
[346146896,1734748259793,-362.94495258,0.00023287,4]
[346146897,1734748259805,-137.05504742,0.00023287,4]
[346146898,1734748259815,-153.0,0.00023903,2]
[346146899,1734748259824,-28024.52495278,0.00024,5]
[346146900,1734748259835,-1490.79188548,0.00024,5]
[346146901,1734748259853,-486.35710109,0.00023287,4]
[346146902,1734748259962,-1124.08932401,0.00023067,2]
[346146903,1734748259971,-75.31067599,0.00023114,2]
[346146904,1734748259982,-892.68932401,0.00023114,2]
[346146905,1734748259992,-91.65308806,0.00023287,4]
[346146906,1734748260001,-500.0,0.00023287,4]
[346146907,1734748260011,-500.0,0.00023287,4]
[346146908,1734748260020,-510.13868961,0.00023287,4]
[346146909,1734748260029,-500.0,0.00023287,4]
[346146910,1734748260038,-295.72,0.00023287,4]
[346146911,1734748260048,-500.0,0.00023287,4]
[346146912,1734748260057,-500.0,0.00023287,4]
[346146913,1734748260066,-500.0,0.00023287,4]
[346146914,1734748260076,-211.54709832,0.00023287,4]
[346146915,1734748260089,-788.45290168,0.00023287,4]
[346146916,1734748260098,-474.6,0.00023287,4]
[346146917,1734748260108,-1000.0,0.00023287,4]
[346146918,1734748260117,-1000.0,0.00023287,4]
[346146919,1734748260127,-374.41,0.00023287,4]
[346146920,1734748260137,-151.0,0.000235,7]
[346146921,1734748260147,-1327.328,0.00023584,2]
[346146922,1734748260157,-151.0,0.000238,7]
[346146923,1734748260167,-151.0,0.0002388,7]
[346146924,1734748260176,-151.427751,0.000239,7]
[346146925,1734748260186,-77327.70206815,0.00024,5]
[346146926,1734748260199,-340.762495,0.00024,5]
[346146927,1734748260211,-18219.51967581,0.00024,5]
[346146928,1734748260222,-8552.00711034,0.00024,5]
[346146929,1734748260235,-10703.28618068,0.00024,5]
[346146930,1734748260247,-546.006,0.00024,5]
[346146931,1734748260259,-40696.12942058,0.00024,5]
[346146932,1734748260279,-500.0,0.00023287,4]
[346146933,1734748260288,-6700.0,0.00024,5]
[346146934,1734748288417,155.2,0.00010137,2]
[346146951,1734749161632,162.44,0.00022004,30]
[346146964,1734749323866,158.05,0.00010137,2]
[346146972,1734749432563,-155.2,0.00018065,2]
[346146973,1734749432573,-647.15,0.00020359,2]
[346146974,1734749432582,-500.0,0.00020614,2]
[346146975,1734749432591,-250.0,0.0002147,2]
[346146976,1734749432601,-250.0,0.00021488,2]
[346146977,1734749432610,-1242.17,0.00021493,2]
[346146978,1734749432620,-2095.43,0.000215,2]
[346146979,1734749432629,-233.19922563,0.00021532,2]
[346146980,1734749432641,-153.63077437,0.00021532,2]
[346146981,1734749432652,-373.73,0.00021563,2]
[346146982,1734749432661,-1392.31,0.00021564,2]
[346146983,1734749432670,-150.0,0.000216,4]
[346146984,1734749432679,-150.0,0.000216,4]
[346146985,1734749432690,-150.0,0.000216,4]
[346146986,1734749432699,-10740.25387545,0.00021699,2]
[346146987,1734749432711,-25191.18315535,0.00021699,2]
[346146988,1734749432722,-503.1,0.00021699,2]
[346146989,1734749432737,-992.84,0.00021699,2]
[346146990,1734749432748,-999.1096,0.00021699,2]
[346146991,1734749432760,-999.621,0.00021699,2]
[346146992,1734749432807,-6598.80071907,0.00021699,2]
[346146993,1734749432818,-357.69185013,0.00021699,2]
[346146994,1734749432829,-23900.0,0.00021799,2]
[346146995,1734749432838,-150.0,0.00021823,2]
[346146996,1734749432848,-1004.13,0.00021832,2]
[346146997,1734749432859,-1010.72,0.00021832,2]
[346146998,1734749432869,-150.0,0.00021848,2]
[346146999,1734749432879,-150.0,0.00021867,4]
[346147000,1734749432891,-150.0,0.0002189,2]
[346147001,1734749432902,-250.0,0.00021898,2]
[346147002,1734749432912,-1870.79,0.00021921,2]
[346147003,1734749432921,-2328.49,0.00021938,2]
[346147004,1734749432931,-1010.37,0.00021973,2]
[346147005,1734749432940,-1003.26,0.00021973,2]
[346147006,1734749432950,-1000.0,0.00021974,2]
[346147007,1734749432959,-150.0,0.00021988,2]
[346147008,1734749432969,-150.0,0.00021995,2]
[346147009,1734749432978,-300.0,0.00021996,2]
[346147010,1734749432988,-216.0,0.00022,2]
[346147011,1734749432998,-263.01,0.00022001,2]
[346147012,1734749433007,-150.0,0.00022023,2]
[346147013,1734749433017,-200.0,0.00022023,2]
[346147014,1734749433026,-150.0,0.00022046,2]
[346147015,1734749433035,-2751.0,0.00022046,2]
[346147016,1734749433044,-150.0,0.0002205,2]
[346147019,1734749433053,-150.0,0.0002206,2]
[346147022,1734749433062,-150.0,0.0002207,2]
[346147024,1734749433071,-150.0,0.0002208,4]
[346147026,1734749433080,-150.0,0.00022099,2]
[346147028,1734749433088,-150.0,0.00022111,2]
[346147030,1734749433098,-150.0,0.00022129,2]
[346147032,1734749433107,-2539.15,0.00022133,2]
[346147034,1734749433116,-150.0,0.00022133,4]
[346147036,1734749433126,-200.0,0.00022136,2]
[346147038,1734749433136,-150.0,0.00022138,2]
[346147040,1734749433146,-150.0,0.00022153,2]
[346147042,1734749433156,-150.0,0.00022208,2]
[346147044,1734749433165,-150.0,0.00022231,2]
[346147046,1734749433175,-150.0,0.0002225,2]
[346147048,1734749433184,-150.0,0.00022309,2]
[346147050,1734749433194,-941.56,0.00022309,2]
[346147052,1734749433203,-150.0,0.00022357,2]
[346147054,1734749433213,-150.0,0.0002236,2]
[346147056,1734749433222,-150.0,0.00022365,2]
[346147058,1734749433232,-150.0,0.000224,4]
[346147060,1734749433241,-150.0,0.000224,4]
[346147062,1734749433251,-150.0,0.00022419,2]
[346147064,1734749433260,-150.0,0.0002251,2]
[346147066,1734749433270,-150.0,0.0002256,4]
[346147068,1734749433279,-150.0,0.00022566,2]
[346147070,1734749433289,-150.0,0.00022597,2]
[346147072,1734749433298,-647.15,0.00022623,2]
[346147074,1734749433307,-150.0,0.00022652,2]
[346147076,1734749433318,-150.0,0.00022657,2]
[346147078,1734749433327,-150.0,0.00022661,2]
[346147080,1734749433337,-150.0,0.00022667,4]
[346147082,1734749433347,-1500.0,0.00022681,2]
[346147084,1734749433356,-150.0,0.00022689,2]
[346147085,1734749433366,-150.0,0.00022753,2]
[346147088,1734749433375,-150.0,0.00022774,2]
[346147089,1734749433384,-415.373,0.000228,2]
[346147091,1734749433393,-500.0,0.00022806,2]
[346147093,1734749433404,-3826.0,0.00022824,2]
[346147095,1734749433414,-150.0,0.00022824,2]
[346147098,1734749433424,-171.78,0.00022826,2]
[346147099,1734749433433,-150.0,0.00022855,2]
[346147100,1734749433443,-150.0,0.00022898,2]
[346147101,1734749433452,-150.0,0.00022907,2]
[346147102,1734749433462,-150.0,0.00022921,2]
[346147103,1734749433472,-150.0,0.00022928,2]
[346147104,1734749433481,-150.0,0.00022933,4]
[346147105,1734749433491,-436.91,0.00022959,2]
[346147106,1734749433503,-770.39,0.00022959,2]
[346147107,1734749433515,-770.39,0.00022959,2]
[346147108,1734749433528,-436.91,0.00022959,2]
[346147109,1734749433541,-770.39,0.00022959,2]
[346147110,1734749433553,-436.91,0.00022959,2]
[346147111,1734749433564,-436.91,0.00022959,2]
[346147112,1734749433575,-770.39,0.00022959,2]
[346147113,1734749433587,-150.0,0.00022964,2]
[346147114,1734749433600,-150.0,0.00022966,2]
[346147115,1734749433613,-150.0,0.00022981,2]
[346147116,1734749433625,-203.98250644,0.00023,2]
[346147117,1734749433638,-2261.0,0.00023,2]
[346147118,1734749433653,-13938.87446828,0.00023013,3]
[346147119,1734749433664,-217.0,0.00023014,2]
[346147120,1734749433677,-1500.0,0.00023014,2]
[346147121,1734749433689,-150.0,0.0002304,4]
[346147123,1734749433700,-150.0,0.00023044,2]
[346147125,1734749433711,-3112.0316,0.00023087,2]
[346147127,1734749433721,-150.0,0.000231,2]
[346147128,1734749433736,-263.01,0.00023101,2]
[346147129,1734749433749,-150.0,0.00023103,2]
[346147130,1734749433761,-1524.99967004,0.00023105,2]
[346147131,1734749433774,-150.0,0.00023118,2]
[346147132,1734749433785,-150.0,0.00023159,2]
[346147133,1734749433798,-150.0,0.00023162,2]
[346147134,1734749433811,-194.1569455,0.00023184,3]
[346147135,1734749433824,-796.589,0.00023184,3]
[346147136,1734749433837,-10130.85730619,0.00023186,2]
[346147137,1734749433849,-1212.81597445,0.00023187,2]
[346147138,1734749433861,-220.0,0.00023187,2]
[346147139,1734749433873,-1000.0,0.00023187,2]
[346147140,1734749433886,-1666.5753,0.00023187,2]
[346147141,1734749433898,-179.8077,0.00023187,2]
[346147142,1734749433911,-5000.0,0.00023187,2]
[346147143,1734749433922,-1591.8613,0.00023187,2]
[346147144,1734749433934,-150.0,0.00023194,2]
[346147145,1734749433945,-150.0,0.000232,4]
[346147146,1734749433957,-150.0,0.000232,4]
[346147147,1734749433969,-150.0,0.00023201,2]
[346147148,1734749433981,-1500.0,0.00023206,2]
[346147149,1734749433993,-150.0,0.00023247,2]
[346147150,1734749434005,-152.0,0.0002325,3]
[346147151,1734749434016,-1212.81597441,0.00023266,2]
[346147152,1734749434027,-500.0,0.00023273,2]
[346147153,1734749434038,-182.15,0.00023277,2]
[346147154,1734749434048,-222.122111,0.00023284,2]
[346147155,1734749434058,-222.122111,0.00023284,3]
[346147156,1734749434069,-222.122111,0.00023284,4]
[346147157,1734749434080,-222.122111,0.00023285,2]
[346147158,1734749434094,-222.122111,0.00023285,3]
[346147159,1734749434107,-222.122111,0.00023285,4]
[346147160,1734749434118,-222.122111,0.00023285,5]
[346147161,1734749434128,-222.122111,0.00023286,2]
[346147162,1734749434138,-222.122111,0.00023286,3]
[346147163,1734749434148,-222.122111,0.00023286,4]
[346147164,1734749434161,-222.122111,0.00023286,5]
[346147165,1734749434174,-222.122111,0.00023286,6]
[346147166,1734749434187,-6827.56610085,0.00023286,2]
[346147167,1734749434199,-150.0,0.00023286,2]
[346147168,1734749434210,-506.00074883,0.00023287,4]
[346147169,1734749434220,-501.97066939,0.00023287,4]
[346147170,1734749434230,-432.92301899,0.00023287,4]
[346147171,1734749434241,-501.87099369,0.00023287,4]
[346147172,1734749434251,-504.17846764,0.00023287,4]
[346147173,1734749434262,-242.3652811,0.00023287,4]
[346147174,1734749434273,-501.07089215,0.00023287,4]
[346147175,1734749434284,-500.0,0.00023287,2]
[346147176,1734749434295,-500.56474595,0.00023287,2]
[346147177,1734749434307,-516.3874709,0.00023287,4]
[346147178,1734749434320,-500.0,0.00023287,4]
[346147179,1734749434330,-328.36212748,0.00023287,4]
[346147180,1734749434341,-500.0,0.00023287,4]
[346147181,1734749434351,-508.14935051,0.00023287,4]
[346147182,1734749434362,-500.0,0.00023287,4]
[346147183,1734749434373,-500.0,0.00023287,4]
[346147184,1734749434383,-500.0,0.00023287,4]
[346147185,1734749434394,-318.36934584,0.00023287,4]
[346147186,1734749434405,-508.87196786,0.00023287,4]
[346147187,1734749434415,-511.11610522,0.00023287,4]
[346147188,1734749434426,-500.0,0.00023287,4]
[346147189,1734749434437,-509.09039375,0.00023287,4]
[346147190,1734749434448,-523.66825259,0.00023287,4]
[346147191,1734749434459,-515.11574827,0.00023287,4]
[346147192,1734749434470,-509.07671116,0.00023287,4]
[346147193,1734749434481,-510.28241377,0.00023287,4]
[346147194,1734749434491,-500.0,0.00023287,4]
[346147195,1734749434502,-561.69322392,0.00023287,4]
[346147196,1734749434512,-517.77668731,0.00023287,4]
[346147197,1734749434524,-426.86836221,0.00023287,4]
[346147198,1734749434534,-617.54225876,0.00023287,4]
[346147199,1734749434545,-514.33574005,0.00023287,4]
[346147200,1734749434556,-514.69805367,0.00023287,4]
[346147201,1734749434566,-512.29614347,0.00023287,4]
[346147202,1734749434577,-510.56128448,0.00023287,4]
[346147203,1734749434588,-508.30368766,0.00023287,4]
[346147204,1734749434599,-505.59764714,0.00023287,4]
[346147205,1734749434609,-500.0,0.00023287,4]
[346147206,1734749434620,-546.68,0.00023287,4]
[346147207,1734749434632,-500.0,0.00023287,4]
[346147208,1734749434643,-500.0,0.00023287,4]
[346147209,1734749434654,-641.3,0.00023287,4]
[346147210,1734749434665,-341.92364892,0.00023287,4]
[346147211,1734749434675,-205.26899593,0.00023287,4]
[346147212,1734749434686,-500.0,0.00023287,4]